bitfinex-derivatives/quotes_SOLF0:USTF0_20250325
["timestamp","ask_amount","ask_price","bid_price","bid_amount"]
[1742873683225,0.05010492,139.08,139.03,5.8688]
[1742873683420,7.23960492,139.08,139.03,13.0602]
[1742873683625,0.05010492,139.08,139.03,5.8688]
[1742873683826,0.05010492,139.08,138.97,258.6]
[1742873684128,26.78,139.09,138.98,32.7097]
[1742873684322,0.04753373,139.04,138.98,32.7097]
[1742873684925,0.04753373,139.04,138.98,5.9097]
[1742873685127,0.04753373,139.04,138.98,3.9912]
[1742873685522,7.192,139.03,138.98,7.1943]
[1742873685718,26.86753373,139.04,138.97,258.6]
[1742873685930,0.04753373,139.04,138.97,258.6]
[1742873686122,0.04753373,139.04,139.02,7.192]
[1742873686527,0.04753373,139.04,139.01,26.86]
[1742873686728,0.04753373,139.04,138.97,285.5]
[1742873687030,7.1922,139.03,138.98,34.0943]
[1742873687224,0.04753373,139.04,138.98,26.9]
[1742873688229,0.04753373,139.04,139.0,7.1929]
[1742873688832,7.23883373,139.04,139.0,7.1929]
[1742873689330,0.04753373,139.04,139.01,7.1927]
[1742873689733,0.04753373,139.04,138.98,26.9]
[1742873689930,0.04753373,139.04,139.0,7.1933]
[1742873690633,0.04753373,139.04,138.98,26.9]
[1742873691635,0.04753373,139.04,139.0,7.193]
[1742873692433,0.04753373,139.04,139.02,7.1922]
[1742873692828,0.04753373,139.04,138.98,26.9]
[1742873693240,0.04753373,139.04,139.0,7.193]
[1742873693837,7.23883373,139.04,139.0,7.193]
[1742873694234,0.04753373,139.04,139.01,7.1927]
[1742873695440,7.23903373,139.04,139.0,7.1931]
[1742873698137,0.04753373,139.04,139.01,7.1927]
[1742873698534,0.04753373,139.04,138.98,26.9]
[1742873698944,0.04753373,139.04,138.97,258.6]
[1742873699548,7.1931,139.01,138.97,265.7947]
[1742873699744,26.8,139.03,138.93,4.076]
[1742873699944,0.05413688,139.0,138.93,2.0498]
[1742873700145,0.05413688,139.0,138.93,30.8139]
[1742873701148,0.05413688,139.0,138.97,7.1946]
[1742873701452,0.05413688,139.0,138.97,26.9]
[1742873701847,7.1942,138.99,138.97,26.9]
[1742873702252,0.05413688,139.0,138.94,27.06]
[1742873702452,7.1947,138.98,138.94,27.06]
[1742873702754,0.05413688,139.0,138.94,27.06]
[1742873703148,0.05413688,139.0,138.97,7.1944]
[1742873703445,0.05413688,139.0,138.94,27.06]
[1742873705149,0.05413688,139.0,138.98,7.1944]
[1742873706042,0.05413688,139.0,138.99,7.1938]
[1742873706350,27.2,139.07,138.98,27.2]
[1742873706551,27.2,139.07,138.99,29.0801]
[1742873706749,7.1919,139.03,139.0,7.1932]
[1742873706950,27.2,139.07,138.99,29.0801]
[1742873707451,0.04979638,139.04,139.02,0.04791631]
[1742873707650,0.04979638,139.04,138.93,1.9641]
[1742873707651,27.56,139.03,138.94,1.8801]
[1742873707858,7.1945,138.98,138.95,7.1957]
[1742873708056,27.56,139.03,138.94,1.8801]
[1742873708451,7.1936,139.0,138.96,7.1951]
[1742873708948,0.05475112,138.99,138.96,7.1951]
[1742873709145,0.05475112,138.99,138.94,1.8801]
[1742873709351,27.56,139.03,138.94,1.8801]
[1742873709550,27.56,139.03,138.98,7.1941]
[1742873709754,7.1926,139.02,138.98,7.1941]
[1742873709956,29.75164881,139.08,138.97,27.54]
[1742873710151,7.1935,139.0,138.97,27.54]
[1742873710455,0.05297486,139.0,138.97,27.5874993]
[1742873711150,0.05297486,139.0,138.98,7.1941]
[1742873711857,0.05297486,139.0,138.97,27.5874993]
[1742873712751,0.05297486,139.0,138.98,7.1941]
[1742873714060,0.05297486,139.0,138.97,34.7821993]
[1742873714560,0.05297486,139.0,138.98,7.194]
[1742873715260,0.05297486,139.0,138.97,34.7820993]
[1742873715563,0.05297486,139.0,138.97,27.5874993]
[1742873715763,0.05297486,139.0,138.98,7.1941]
[1742873716359,0.05297486,139.0,138.97,0.0474993]
[1742873716863,7.24647486,139.0,138.97,0.0474993]
[1742873717059,0.05297486,139.0,138.97,0.0474993]
[1742873717363,0.05297486,139.0,138.97,28.9074993]
[1742873717561,0.05297486,139.0,138.99,7.1938]
[1742873717760,0.05297486,139.0,138.97,28.9074993]
[1742873718168,0.05297486,139.0,138.99,7.1938]
[1742873718366,0.05297486,139.0,138.97,28.9074993]
[1742873718763,7.24657486,139.0,138.97,0.0474993]
[1742873719660,0.05297486,139.0,138.97,7.2422993]
[1742873720567,0.05297486,139.0,138.97,0.0474993]
[1742873721161,0.05297486,139.0,138.98,7.1941]
[1742873721361,0.05297486,139.0,138.97,0.0474993]
[1742873721562,0.05297486,139.0,138.98,7.1941]
[1742873721965,0.05297486,139.0,138.97,0.0474993]
[1742873722165,7.24657486,139.0,138.97,7.2421993]
[1742873722365,7.24657486,139.0,138.97,0.0474993]
[1742873722366,0.05297486,139.0,138.97,0.0474993]
[1742873722561,7.1942,138.99,138.97,0.0474993]
[1742873723068,0.05297486,139.0,138.97,0.0474993]
[1742873723760,0.05297486,139.0,138.98,7.194]
[1742873723959,0.05297486,139.0,138.97,0.0474993]
[1742873724367,0.05297486,139.0,138.98,7.194]
[1742873724569,0.05297486,139.0,138.97,0.0474993]
[1742873724868,7.24657486,139.0,138.97,0.0474993]
[1742873725369,0.05297486,139.0,138.97,0.0474993]
[1742873725568,0.05297486,139.0,138.98,7.1941]
[1742873726270,0.05297486,139.0,138.99,7.1938]
[1742873726659,0.05297486,139.0,138.98,29.9]
[1742873726865,7.24637486,139.0,138.98,29.9]
[1742873727067,0.05297486,139.0,138.98,29.9]
[1742873727964,0.05297486,139.0,138.98,37.0941]
[1742873728574,0.05297486,139.0,138.99,7.1938]
[1742873728765,48.14469956,139.04,138.98,29.9]
[1742873728965,48.14469956,139.04,138.99,2.009]
[1742873729373,7.192,139.03,138.99,9.2024]
[1742873729766,0.05430977,139.02,139.0,0.05413833]
[1742873730767,0.05430977,139.02,139.0,7.24723833]
[1742873731073,48.14469956,139.04,139.0,0.05413833]
[1742873731270,29.75164881,139.05,139.0,0.05413833]
[1742873731869,7.1917,139.04,139.0,7.24703833]
[1742873732069,7.1917,139.04,139.0,0.05413833]
[1742873732268,0.05173998,139.03,139.0,0.05413833]
[1742873732472,0.05173998,139.03,139.02,7.1923]
[1742873733173,0.05173998,139.03,139.0,1.94703833]
[1742873733465,0.05173998,139.03,139.0,0.05413833]
[1742873733667,7.1928,139.01,139.0,0.05413833]
[1742873734066,0.05173998,139.03,139.0,0.05413833]
[1742873734267,7.1925,139.02,139.0,0.05413833]
[1742873734576,0.05173998,139.03,139.0,0.05413833]
[1742873734870,7.1926,139.02,139.0,0.05413833]
[1742873735074,0.05173998,139.03,139.0,0.05413833]
[1742873735375,7.1923,139.02,139.0,0.05413833]
[1742873737070,0.05173998,139.03,139.01,7.1927]
[1742873738070,0.05173998,139.03,139.0,0.05413833]
[1742873738669,0.05173998,139.03,139.02,7.1923]
[1742873739272,0.05173998,139.03,139.0,0.05413833]
[1742873739979,0.05173998,139.03,139.0,7.24713833]
[1742873742475,7.24363998,139.03,139.0,0.05413833]
[1742873742683,0.05173998,139.03,139.0,0.05413833]
[1742873743083,7.24373998,139.03,139.0,0.05413833]
[1742873743482,0.05173998,139.03,139.0,7.24743833]
[1742873743681,0.05173998,139.03,139.0,0.05413833]
[1742873743885,0.05173998,139.03,139.02,7.1923]
[1742873744183,0.05173998,139.03,139.0,0.05413833]
[1742873744580,0.05173998,139.03,139.0,7.24723833]
[1742873744782,7.24353998,139.03,139.0,7.24723833]
[1742873744983,7.24353998,139.03,139.0,0.05413833]
[1742873745183,7.24353998,139.03,139.0,7.24743833]
[1742873745484,0.05173998,139.03,139.0,7.24743833]
[1742873745678,0.05173998,139.03,139.0,0.05413833]
[1742873745884,0.05173998,139.03,139.02,7.1923]
[1742873746885,0.05173998,139.03,139.0,0.05413833]
[1742873747281,7.24373998,139.03,139.0,0.05413833]
[1742873747685,0.05173998,139.03,139.0,0.05413833]
[1742873747879,0.05173998,139.03,139.01,7.1928]
[1742873748078,0.05173998,139.03,139.0,0.05413833]
[1742873749487,0.05173998,139.03,139.01,7.1925]
[1742873749785,0.05173998,139.03,139.0,0.05413833]
[1742873750085,0.05173998,139.03,139.0,7.24693833]
[1742873750285,0.05173998,139.03,139.0,0.05413833]
[1742873751488,0.05173998,139.03,139.0,7.24703833]
[1742873752989,0.05173998,139.03,139.01,7.1928]
[1742873753385,0.05173998,139.03,139.0,0.05413833]
[1742873754287,7.24373998,139.03,139.0,0.05413833]
[1742873754684,0.05173998,139.03,139.0,7.24743833]
[1742873754883,0.05173998,139.03,139.0,0.05413833]
[1742873757492,7.24383998,139.03,139.0,0.05413833]
[1742873757680,0.05173998,139.03,139.0,0.05413833]
[1742873758292,0.05173998,139.03,139.01,7.1924]
[1742873758490,0.05173998,139.03,139.0,0.05413833]
[1742873759593,0.05173998,139.03,139.0,7.24713833]
[1742873761589,0.05173998,139.03,139.01,7.1927]
[1742873761789,0.05173998,139.03,139.0,0.05413833]
[1742873761990,0.05173998,139.03,139.01,7.1928]
[1742873762896,0.05173998,139.03,139.0,0.05413833]
[1742873763493,0.05173998,139.03,139.01,7.1928]
[1742873763797,0.05173998,139.03,139.02,30.32]
[1742873766791,0.05173998,139.03,139.02,37.5123]
[1742873766997,29.75164881,139.09,139.02,30.32]
[1742873767500,7.1905,139.06,139.02,30.32]
[1742873767798,29.75164881,139.09,139.02,30.32]
[1742873767993,0.0527597,139.05,139.03,0.04584157]
[1742873768191,0.0527597,139.05,138.97,289.2]
[1742873768389,7.1931,139.01,138.97,289.2]
[1742873769101,7.194,138.99,138.97,258.96]
[1742873769298,0.05111105,139.0,138.98,0.05380926]
[1742873769595,7.1936,139.0,138.98,0.05380926]
[1742873769791,7.24771599,139.0,138.98,0.05380926]
[1742873770187,0.05411599,139.0,138.98,0.05380926]
[1742873770795,0.05411599,139.0,138.98,7.24780926]
[1742873771196,0.05411599,139.0,138.99,7.1938]
[1742873771694,18.40430455,139.03,138.98,0.05380926]
[1742873772901,7.1936,139.01,138.98,30.13380926]
[1742873773099,0.05363667,139.02,138.98,0.05380926]
[1742873773299,7.1946,138.99,138.98,0.05380926]
[1742873774294,0.05363667,139.02,138.92,2.029]
[1742873774500,30.1,139.01,138.93,30.1]
[1742873775211,30.1,139.01,138.92,2.029]
[1742873775392,7.1962,138.96,138.92,39.287]
[1742873775597,7.1962,138.96,138.95,0.05092062]
[1742873775993,7.1958,138.97,138.95,0.05092062]
[1742873776200,0.04806254,138.98,138.85,375.17255348]
[1742873776402,7.1975,138.94,138.87,34.0774]
[1742873776595,49.66447653,139.01,138.87,4.0574]
[1742873776799,49.66447653,139.01,138.87,6.0346]
[1742873777109,7.198,138.93,138.88,30.02]
[1742873777301,30.0,138.97,138.88,30.02]
[1742873777497,0.05500337,138.92,138.89,0.05096731]
[1742873779905,7.199,138.91,138.89,0.05096731]
[1742873780201,0.05500337,138.92,138.89,0.05096731]
[1742873781107,7.25340337,138.92,138.89,0.05096731]
[1742873781704,7.1992,138.91,138.89,0.05096731]
[1742873782309,7.1992,138.9,138.89,0.05096731]
[1742873784112,0.05500337,138.92,138.89,0.05096731]
[1742873784603,7.1987,138.91,138.89,0.05096731]
[1742873785012,0.05500337,138.92,138.89,0.05096731]
[1742873785401,0.05500337,138.92,138.91,7.1987]
[1742873785605,38.9956,138.98,138.89,5.87656731]
[1742873785907,38.9956,138.98,138.93,7.1977]
[1742873785908,2.0403,138.98,138.93,7.1977]
[1742873786106,108.29840647,138.99,138.93,7.1977]
[1742873786413,108.29840647,138.99,138.92,29.8]
[1742873786606,108.29840647,138.99,138.94,0.05291586]
[1742873786812,0.05275697,138.97,138.94,0.05291586]
[1742873787512,7.24855697,138.97,138.94,0.05291586]
[1742873788111,7.1964,138.96,138.94,0.05291586]
[1742873788614,0.05275697,138.97,138.94,0.05291586]
[1742873789413,0.05275697,138.97,138.96,7.1961]
[1742873790616,0.05275697,138.97,138.96,36.8361]
[1742873791507,29.62,139.04,138.96,29.64]
[1742873792011,7.1946,139.0,138.96,29.64]
[1742873792314,29.62,139.04,138.96,29.64]
[1742873792514,11.2087,139.05,138.97,0.046763]
[1742873792813,2.0631,139.05,138.97,0.046763]
[1742873793015,0.05162279,139.02,138.97,0.046763]
[1742873793619,0.05162279,139.02,139.0,7.1938]
[1742873793809,0.05162279,139.02,138.97,0.046763]
[1742873794015,0.05162279,139.02,139.01,7.1935]
[1742873794616,0.05162279,139.02,139.0,7.24501068]
[1742873794814,0.05162279,139.02,139.0,0.05141068]
[1742873795219,0.05162279,139.02,139.01,7.1935]
[1742873798421,0.05162279,139.02,139.0,7.24521068]
[1742873799422,0.05162279,139.02,139.0,0.05141068]
[1742873803025,0.05162279,139.02,139.01,29.32]
[1742873806335,0.05162279,139.02,139.0,0.05141068]
[1742873808526,7.1935,139.01,139.0,0.05141068]
[1742873809231,7.24482279,139.02,139.0,0.05141068]
[1742873809926,0.05162279,139.02,139.0,0.05141068]
[1742873810223,0.05162279,139.02,139.0,29.19141068]
[1742873811334,7.1935,139.01,139.0,29.19141068]
[1742873812432,7.1935,139.01,139.0,0.05141068]
[1742873819541,7.1953,138.98,138.95,259.0]
[1742873819734,7.1953,138.98,138.95,287.92]
[1742873819930,2.0586,139.03,138.95,287.92]
[1742873820138,2.0586,139.03,138.96,7.196]
[1742873820436,2.0586,139.03,138.95,287.92]
[1742873820940,0.05521585,139.0,138.98,0.05073288]
[1742873822633,0.05521585,139.0,138.98,7.24573288]
[1742873822839,0.05521585,139.0,138.98,0.05073288]
[1742873823039,0.05521585,139.0,138.99,28.82]
[1742873823538,0.05521585,139.0,138.99,36.0146]
[1742873825443,29.75164881,139.05,139.02,7.1929]
[1742873825640,29.75164881,139.05,138.99,32.9145]
[1742873825840,7.192,139.04,139.0,7.1938]
[1742873826041,29.75164881,139.05,138.99,32.9145]
[1742873826443,7.23896867,139.03,139.01,0.05482957]
[1742873826836,0.04616867,139.03,139.01,0.05482957]
[1742873827041,0.04616867,139.03,139.01,7.24802957]
[1742873827339,0.04616867,139.03,139.01,0.05482957]
[1742873829040,0.04616867,139.03,139.01,7.24812957]
[1742873830245,0.04616867,139.03,139.01,0.05482957]
[1742873830941,0.04616867,139.03,139.01,7.24822957]
[1742873831137,0.04616867,139.03,139.01,0.05482957]
[1742873832550,0.04616867,139.03,139.01,7.24832957]
[1742873833245,7.23876867,139.03,139.01,0.05482957]
[1742873833446,0.04616867,139.03,139.01,0.05482957]
[1742873833848,0.04616867,139.03,139.01,7.24812957]
[1742873835253,0.04616867,139.03,139.02,7.193]
[1742873837652,0.04616867,139.03,139.01,7.24812957]
[1742873837855,0.04616867,139.03,139.01,0.05482957]
[1742873838752,29.75164881,139.08,139.01,0.05482957]
[1742873838951,29.75164881,139.08,139.01,12.5735441]
[1742873839151,29.75164881,139.08,139.02,1.8787]
[1742873839352,29.75164881,139.08,139.03,287.54]
[1742873839557,18.38125797,139.07,139.03,287.54]
[1742873840058,0.05343407,139.06,139.04,0.04535336]
[1742873840252,7.1915,139.05,139.04,0.04535336]
[1742873840858,7.24463407,139.06,139.04,0.04535336]
[1742873841152,0.05343407,139.06,139.04,0.04535336]
[1742873841960,7.1915,139.05,139.04,0.04535336]
[1742873843455,0.05343407,139.06,139.04,0.04535336]
[1742873846863,0.05343407,139.06,138.98,30.3987]
[1742873848064,0.05343407,139.06,139.01,0.05347656]
[1742873849060,18.4340305,139.06,139.01,0.05347656]
[1742873851765,126.73243697,139.06,139.01,0.05347656]
[1742873853570,0.05343407,139.06,139.01,0.05347656]
[1742873857568,0.05343407,139.06,139.02,28.22]
[1742873859074,0.05343407,139.06,139.01,0.05347656]
[1742873859471,28.16,139.05,139.01,0.05347656]
[1742873861876,126.71829669,139.04,139.01,0.05347656]
[1742873864183,19.57159684,139.03,138.93,3.8446]
[1742873864372,21.50189684,139.03,138.93,3.8446]
[1742873865376,0.04711424,138.99,138.97,0.0530583]
[1742873872285,0.04711424,138.99,138.97,0.0530583]
[1742873883000,27.96711424,138.99,138.91,258.96]
[1742873883390,47.53871108,138.99,138.88,29.955]
[1742873883594,3.3062,138.98,138.88,29.955]
[1742873883994,3.3062,138.98,138.88,2.035]
[1742873884295,0.05057058,138.94,138.92,0.05517594]
[1742873893203,0.05057058,138.94,138.87,1.9264]
[1742873894012,12.58599562,138.94,138.85,287.24]
[1742873894206,14.62209562,138.94,138.85,287.24]
[1742873894508,0.05408731,138.91,138.88,0.05167528]
[1742873896305,28.13408731,138.91,138.83,1.9578]
[1742873897411,28.13408731,138.91,138.86,0.02383594]
[1742873897912,0.05408731,138.91,138.86,0.02383594]
[1742873898118,0.05408731,138.91,138.86,28.40383594]
[1742873898611,0.05408731,138.91,138.87,3.9833]
[1742873900101,0.05408731,138.91,138.86,28.40383594]
[1742873901912,0.05408731,138.91,138.86,0.02383594]
[1742873906814,0.05408731,138.91,138.86,28.30383594]
[1742873907516,0.05408731,138.91,138.87,3.9201]
[1742873908012,0.05408731,138.91,138.88,2.0129]
[1742873910815,0.05408731,138.91,138.88,30.1929]
[1742873914515,0.05408731,138.91,138.88,2.0129]
[1742873915018,0.05408731,138.91,138.86,0.02383594]
[1742873925723,12.59721538,138.91,138.86,0.02383594]
[1742873926428,30.99980649,138.91,138.86,0.02383594]
[1742873926627,18.45667842,138.91,138.86,0.02383594]
[1742873928526,30.99980649,138.91,138.86,0.02383594]
[1742873930129,29.75164881,138.9,138.86,0.02383594]
[1742873936338,29.80573612,138.91,138.87,28.08]
[1742873938843,0.05408731,138.91,138.87,28.08]
[1742873940547,0.05408731,138.91,138.87,34.077]
[1742873941241,0.05408731,138.91,138.86,0.02383594]
[1742873941841,12.59721538,138.91,138.86,0.02383594]
[1742873942142,0.05408731,138.91,138.86,0.02383594]
[1742873943240,12.59721538,138.91,138.86,0.02383594]
[1742873943544,0.05408731,138.91,138.86,0.02383594]
[1742873944041,0.05408731,138.91,138.86,28.06383594]
[1742873944240,0.05408731,138.91,138.87,5.8027]
[1742873944633,29.75164881,138.9,138.87,5.8027]
[1742873947243,0.05408731,138.91,138.87,5.8027]
[1742873948460,18.44040047,138.94,138.87,5.8027]
[1742873948645,18.44040047,138.94,138.87,265.0227]
[1742873948948,15.32550047,138.94,138.87,265.0227]
[1742873949650,0.0539283,138.92,138.89,0.0501569]
[1742873949847,0.0539283,138.92,138.9,27.98]
[1742873950054,15.32550047,138.94,138.9,27.98]
[1742873950350,29.75164881,138.95,138.9,27.98]
[1742873950753,117.15473608,138.97,138.9,27.98]
[1742873950754,29.75164881,139.0,138.9,27.98]
[1742873951143,0.05000789,138.96,138.94,0.05248039]
[1742873952958,0.05000789,138.96,138.94,28.05248039]
[1742873955560,0.05000789,138.96,138.94,0.05248039]
[1742873957259,0.05000789,138.96,138.9,28.02]
[1742873958255,0.05000789,138.96,138.92,0.05099755]
[1742873958450,12.54312807,138.96,138.88,28.06]
[1742873958654,28.06,138.95,138.87,259.22]
[1742873958852,28.06,138.95,138.83,1.9864]
[1742873959053,28.06,138.95,138.85,28.16]
[1742873959255,28.06,138.95,138.83,1.9864]
[1742873959457,12.54312807,138.92,138.81,28.2]
[1742873959659,0.04786611,138.9,138.88,0.02837361]
[1742873959963,0.04786611,138.9,138.81,28.2]
[1742873960261,32.2898,138.91,138.81,28.2]
[1742873961163,0.05262796,138.87,138.81,28.2]
[1742873971675,0.05262796,138.87,138.82,2.0186]
[1742873973866,0.05262796,138.87,138.81,28.2]
[1742873974974,0.05262796,138.87,138.78,263.145]
[1742873975275,34.2498,138.91,138.8,29.84]
[1742873975473,0.05026731,138.84,138.8,29.84]
[1742873975670,34.2498,138.91,138.8,29.84]
[1742873976075,0.04548068,138.87,138.8,29.84]
[1742873982780,0.04548068,138.87,138.81,29.98]
[1742873982979,4.0698,138.91,138.81,29.98]
[1742873983175,0.05400752,138.85,138.81,29.98]
[1742873987484,0.05400752,138.85,138.82,29.98]
[1742873989282,0.05400752,138.85,138.83,29.96]
[1742874007891,0.05400752,138.85,138.8,259.24]
[1742874008093,0.05400752,138.85,138.81,30.0]
[1742874013499,0.05400752,138.85,138.78,29.92]
[1742874013898,0.05400752,138.85,138.76,2.32451921]
[1742874014101,29.92,138.84,138.76,2.32451921]
[1742874014298,0.05180243,138.82,138.76,2.32451921]
[1742874027513,12.59920931,138.82,138.76,2.32451921]
[1742874028114,1.8803,138.81,138.76,2.32451921]
[1742874028516,29.68,138.8,138.76,2.32451921]
[1742874029512,31.6221,138.8,138.76,2.32451921]
[1742874030415,31.6221,138.8,138.73,40.0]
[1742874030917,0.05242789,138.78,138.73,40.0]
[1742874031318,12.59983477,138.78,138.63,12.54740688]
[1742874031515,1.9054,138.77,138.64,29.58]
[1742874031819,0.04995977,138.72,138.68,12.54740688]
[1742874032015,0.04995977,138.72,138.69,33.5544]
[1742874033019,0.04995977,138.72,138.7,1.9506]
[1742874033610,1.9421,138.8,138.7,1.9506]
[1742874034718,0.05392962,138.76,138.74,0.04895704]
[1742874034920,0.05392962,138.76,138.75,29.7]
[1742874037920,1.8848,138.84,138.75,29.7]
[1742874038118,1.8848,138.84,138.75,31.7325]
[1742874039218,0.05269585,138.81,138.78,0.05179597]
[1742874039423,0.05269585,138.81,138.79,29.64]
[1742874041328,0.05269585,138.81,138.78,0.05179597]
[1742874041719,1.96419585,138.81,138.78,0.05179597]
[1742874044826,0.05269585,138.81,138.78,0.05179597]
[1742874048632,4.00069585,138.81,138.78,0.05179597]
[1742874050326,12.54740688,138.8,138.71,2.0128]
[1742874050531,12.54740688,138.8,138.71,32.1328]
[1742874050833,42.66740688,138.8,138.71,32.1328]
[1742874051526,0.05317436,138.77,138.74,0.04973809]
[1742874070251,29.75164881,138.82,138.75,29.92]
[1742874070453,29.75164881,138.82,138.75,31.9471]
[1742874071649,0.05412766,138.8,138.77,0.05288674]
[1742874080257,29.75164881,138.87,138.77,19.80029362]
[1742874080457,29.75164881,138.87,138.77,12.54740688]
[1742874080757,29.75164881,138.87,138.77,271.94740688]
[1742874081354,0.04683009,138.83,138.81,0.04792908]
[1742874081560,0.04683009,138.83,138.82,29.6]
[1742874083853,112.40140647,138.9,138.82,29.6]
[1742874084060,112.40140647,138.9,138.82,31.523]
[1742874085063,0.05179762,138.87,138.85,0.05095139]
[1742874100977,0.05179762,138.87,138.86,28.98]
[1742874109488,2.0493,138.94,138.86,28.98]
[1742874109685,4.0801,138.94,138.86,28.98]
[1742874110583,0.04989056,138.91,138.89,0.05473479]
[1742874111087,0.04989056,138.91,138.9,28.74]
[1742874117197,0.04989056,138.91,138.89,28.57473479]
[1742874121103,0.04989056,138.91,138.9,28.5]
[1742874122905,33.60804881,138.98,138.9,28.5]
[1742874124007,0.0488703,138.95,138.93,0.04787366]
[1742874124807,0.0488703,138.95,138.85,259.22]
[1742874125110,12.54740688,138.96,138.86,28.48]
[1742874126107,0.05003339,138.92,138.9,0.04750577]
[1742874126411,0.05003339,138.92,138.85,287.7]
[1742874126709,0.05003339,138.92,138.85,259.22]
[1742874126909,3.98293339,138.92,138.79,259.16]
[1742874127106,3.98293339,138.92,138.8,28.5]
[1742874127310,3.9329,138.92,138.8,28.5]
[1742874127510,0.05086355,138.87,138.85,0.05059207]
[1742874127712,3.9329,138.92,138.85,0.05059207]
[1742874128006,0.04646807,138.87,138.85,28.57059207]
[1742874128206,0.05201277,138.87,138.85,28.57059207]
[1742874128611,29.75164881,138.96,138.86,12.54740688]
[1742874128810,31.69434881,138.96,138.86,12.54740688]
[1742874129311,31.69434881,138.96,138.87,271.72740688]
[1742874129709,0.05529492,138.93,138.9,0.05034834]
[1742874129901,0.05529492,138.93,138.91,28.5]
[1742874133313,1.8745,138.99,138.91,28.5]
[1742874134416,0.05104033,138.96,138.94,0.05529779]
[1742874134611,0.05104033,138.96,138.95,28.38]
[1742874152023,0.05104033,138.96,138.94,0.05529779]
[1742874152222,0.05104033,138.96,138.94,28.11529779]
[1742874161133,0.05104033,138.96,138.94,0.05529779]
[1742874161433,0.05104033,138.96,138.95,27.94]
[1742874163931,0.05104033,138.96,138.94,0.05529779]
[1742874168131,0.05104033,138.96,138.89,27.88]
[1742874168340,0.05104033,138.96,138.89,27.9]
[1742874169128,0.05104033,138.96,138.87,259.18]
[1742874169333,40.43134742,138.97,138.91,0.04623652]
[1742874169531,0.05096391,138.93,138.91,0.04623652]
[1742874173035,0.05096391,138.93,138.84,1.8731]
[1742874173240,1.9167,138.94,138.85,27.82]
[1742874173441,27.82,138.93,138.81,259.12]
[1742874173637,42.38874742,138.93,138.82,27.82]
[1742874173834,42.38874742,138.93,138.81,259.12]
[1742874174036,42.38874742,138.93,138.83,27.84]
[1742874174237,0.05168041,138.88,138.86,0.05200968]
[1742874174438,42.38874742,138.93,138.86,0.05200968]
[1742874174738,42.38874742,138.93,138.82,27.82]
[1742874174944,29.8574,138.93,138.82,27.82]
[1742874175943,0.05039682,138.89,138.86,0.05322456]
[1742874179241,0.05039682,138.89,138.86,27.77322456]
[1742874184253,1.8888,138.95,138.86,27.77322456]
[1742874184453,1.8888,138.95,138.87,4.0197]
[1742874184847,1.8888,138.95,138.88,1.9467]
[1742874185349,0.0512617,138.93,138.9,0.05055739]
[1742874190368,0.0512617,138.93,138.9,27.65055739]
[1742874194163,0.0512617,138.93,138.91,2.0102]
[1742874197664,1.9893,138.99,138.91,2.0102]
[1742874198161,31.53436137,139.01,138.91,2.0102]
[1742874198370,1.9928,139.01,138.91,2.0102]
[1742874198964,1.9928,139.01,138.95,0.04943343]
[1742874198965,0.04665809,138.97,138.95,0.04943343]
[1742874205970,0.04665809,138.97,138.96,27.42]
[1742874206673,54.35145688,138.97,138.82,14.77180399]
[1742874206866,54.35145688,138.97,138.78,6.0892]
[1742874206867,19.58479879,138.95,138.78,6.0892]
[1742874207567,4.0979,138.96,138.78,6.0892]
[1742874207767,1.31326934,138.95,138.78,6.0892]
[1742874207968,0.04845436,138.88,138.86,0.04529288]
[1742874208171,27.52,138.92,138.84,27.52]
[1742874208367,0.05533199,138.88,138.86,0.05080113]
[1742874232594,0.05533199,138.88,138.87,27.26]
[1742874236695,0.05533199,138.88,138.86,0.05080113]
[1742874241401,0.05533199,138.88,138.81,259.1]
[1742874241701,0.05533199,138.88,138.8,27.18]
[1742874241702,27.18,138.87,138.75,259.24]
[1742874241895,6.0594,138.86,138.76,27.18]
[1742874242398,6.0594,138.86,138.76,29.2782]
[1742874242701,0.05527082,138.82,138.8,0.05399934]
[1742874242907,0.05527082,138.82,138.81,27.18]
[1742874248514,35.79196137,138.9,138.81,27.18]
[1742874249611,0.0458094,138.87,138.84,0.05141153]
[1742874251118,27.2458094,138.87,138.76,2.0982]
[1742874251319,12.54925261,138.86,138.74,31.2797]
[1742874251514,27.2,138.87,138.74,31.2797]